[Event "Polofinale MCR juniorek 2023"]
[Site "Czech Republic"]
[Date "2023.11.13"]
[Round "3.2"]
[White "Buchtova, Viktorie"]
[Black "Havelkova, Beata"]
[Result "1-0"]
[TimeControl "90 min per 40 moves + 15 min + 30 sec / move from move 1"]
[WhiteFideId "23714786"]
[BlackFideId "23709405"]
[WhiteElo "1801"]
[BlackElo "1736"]

1. e4 {[%clk 01:30:57]} {[%emt 00:00:03]} c5 {[%clk 01:30:56]} {[%emt
00:00:04]} 2. Nf3 {[%clk 01:31:04]} {[%emt 00:00:23]} e6 {[%clk 01:31:21]}
{[%emt 00:00:05]} 3. d4 {[%clk 01:31:30]} {[%emt 00:00:03]} cxd4 {[%clk
01:31:46]} {[%emt 00:00:05]} 4. Nxd4 {[%clk 01:31:57]} {[%emt 00:00:04]} Nf6
{[%clk 01:32:12]} {[%emt 00:00:04]} 5. Nc3 {[%clk 01:32:12]} {[%emt 00:00:15]}
d6 {[%clk 01:32:33]} {[%emt 00:00:09]} 6. f4 {[%clk 01:29:10]} {[%emt
00:03:32]} a6 {[%clk 01:29:09]} {[%emt 00:03:54]} 7. Bd3 {[%clk 01:27:48]}
{[%emt 00:01:51]} Qc7 {[%clk 01:28:13]} {[%emt 00:01:26]} 8. O-O {[%clk
01:27:14]} {[%emt 00:01:03]} Be7 {[%clk 01:28:27]} {[%emt 00:00:16]} 9. Nf3
{[%clk 01:26:42]} {[%emt 00:01:02]} Nc6 {[%clk 01:16:30]} {[%emt 00:12:27]} 10.
Qe1 {[%clk 01:25:59]} {[%emt 00:01:13]} b5 {[%clk 01:13:32]} {[%emt 00:03:29]}
11. Qg3 {[%clk 01:23:49]} {[%emt 00:02:39]} b4 {[%clk 01:09:22]} {[%emt
00:04:40]} 12. Ne2 {[%clk 01:23:42]} {[%emt 00:00:36]} Qb6+ {[%clk 01:09:06]}
{[%emt 00:00:47]} 13. Kh1 {[%clk 01:23:54]} {[%emt 00:00:18]} Bb7 {[%clk
00:57:38]} {[%emt 00:11:58]} 14. e5 {[%clk 01:20:30]} {[%emt 00:03:54]} Nh5
{[%clk 00:56:33]} {[%emt 00:01:34]} 15. Qg4 {[%clk 01:16:52]} {[%emt 00:04:08]}
g6 {[%clk 00:56:38]} {[%emt 00:00:24]} 16. exd6 {[%clk 01:09:03]} {[%emt
00:08:20]} Bxd6 {[%clk 00:55:31]} {[%emt 00:01:37]} 17. Ng5 {[%clk 01:01:47]}
{[%emt 00:07:46]} Nf6 {[%clk 00:46:57]} {[%emt 00:09:05]} 18. Qh4 {[%clk
01:01:50]} {[%emt 00:00:26]} Be7 {[%clk 00:45:52]} {[%emt 00:01:35]} 19. Qh3
{[%clk 00:59:47]} {[%emt 00:02:33]} Bc8 {[%clk 00:37:08]} {[%emt 00:09:14]} 20.
Be3 {[%clk 00:58:51]} {[%emt 00:01:25]} Bc5 {[%clk 00:37:09]} {[%emt 00:00:29]}
21. Rf3 {[%clk 00:50:36]} {[%emt 00:08:46]} Bxe3 {[%clk 00:36:27]} {[%emt
00:01:11]} 22. Rxe3 {[%clk 00:49:30]} {[%emt 00:01:37]} Ng4 {[%clk 00:32:28]}
{[%emt 00:04:28]} 23. Rf3 {[%clk 00:31:56]} {[%emt 00:18:04]} Nf2+ {[%clk
00:32:48]} {[%emt 00:00:10]} 24. Rxf2 {[%clk 00:30:42]} {[%emt 00:01:45]} Qxf2
{[%clk 00:33:14]} {[%emt 00:00:04]} 25. Nxh7 {[%clk 00:28:55]} {[%emt
00:02:17]} Ke7 {[%clk 00:29:50]} {[%emt 00:03:54]} 26. Qh6 {[%clk 00:28:25]}
{[%emt 00:00:59]} Rxh7 {[%clk 00:28:21]} {[%emt 00:02:00]} 27. Qxh7 {[%clk
00:28:41]} {[%emt 00:00:14]} Bb7 {[%clk 00:28:39]} {[%emt 00:00:12]} 28. Qh3
{[%clk 00:20:12]} {[%emt 00:08:58]} Rd8 {[%clk 00:27:10]} {[%emt 00:01:59]} 29.
Qg3 {[%clk 00:19:30]} {[%emt 00:01:13]} Qc5 {[%clk 00:25:31]} {[%emt 00:02:08]}
30. Qh4+ {[%clk 00:11:42]} {[%emt 00:08:19]} Ke8 {[%clk 00:23:37]} {[%emt
00:02:25]} 31. Ng3 {[%clk 00:09:09]} {[%emt 00:03:02]} Nd4 {[%clk 00:21:20]}
{[%emt 00:02:47]} 32. Qh8+ {[%clk 00:02:06]} {[%emt 00:07:33]} Ke7 {[%clk
00:19:08]} {[%emt 00:02:42]} 33. Qe5 {[%clk 00:02:34]} {[%emt 00:00:02]} Rd5
{[%clk 00:16:27]} {[%emt 00:03:11]} 34. Qb8 {[%clk 00:01:56]} {[%emt 00:01:08]}
Rd7 {[%clk 00:16:47]} {[%emt 00:00:10]} 35. Ne4 {[%clk 00:01:20]} {[%emt
00:01:07]} Qh5 {[%clk 00:15:05]} {[%emt 00:02:11]} 36. Qe5 {[%clk 00:01:48]}
{[%emt 00:00:02]} Qxe5 {[%clk 00:12:37]} {[%emt 00:02:58]} 37. fxe5 {[%clk
00:02:17]} Rd5 {[%clk 00:12:13]} {[%emt 00:00:55]} 38. Nd6 {[%clk 00:02:05]}
{[%emt 00:00:43]} Bc6 {[%clk 00:12:11]} {[%emt 00:00:32]} 39. Rf1 {[%clk
00:00:52]} {[%emt 00:01:42]} Rxe5 {[%clk 00:07:40]} {[%emt 00:05:01]} 40. Nxf7
{[%clk 00:01:20]} {[%emt 00:00:02]} Re3 {[%clk 00:06:08]} {[%emt 00:02:02]} 41.
Ng5 {[%clk 00:10:32]} {[%emt 00:06:48]} e5 {[%clk 00:17:32]} {[%emt 00:04:37]}
42. Kg1 {[%clk 00:09:50]} {[%emt 00:01:11]} Bb5 {[%clk 00:12:50]} {[%emt
00:05:13]} 43. Bxb5 {[%clk 00:08:53]} {[%emt 00:01:27]} axb5 {[%clk 00:13:10]}
{[%emt 00:00:10]} 44. Nf3 {[%clk 00:06:33]} {[%emt 00:02:49]} Re2 {[%clk
00:07:04]} {[%emt 00:06:37]} 45. Nxd4 {[%clk 00:05:35]} {[%emt 00:01:28]} exd4
{[%clk 00:07:29]} {[%emt 00:00:04]} 46. Rf2 {[%clk 00:05:38]} {[%emt 00:00:26]}
Re1+ {[%clk 00:07:55]} {[%emt 00:00:04]} 47. Rf1 {[%clk 00:06:07]} {[%emt
00:00:01]} Re2 {[%clk 00:08:22]} {[%emt 00:00:04]} 48. Rc1 {[%clk 00:06:03]}
{[%emt 00:00:33]} Ke6 {[%clk 00:07:52]} {[%emt 00:01:00]} 49. Kf1 {[%clk
00:06:28]} {[%emt 00:00:05]} Rd2 {[%clk 00:08:04]} {[%emt 00:00:18]} 50. Re1+
{[%clk 00:06:52]} {[%emt 00:00:06]} Kd5 {[%clk 00:08:03]} {[%emt 00:00:31]} 51.
Re2 {[%clk 00:07:01]} {[%emt 00:00:21]} Rd1+ {[%clk 00:08:28]} {[%emt
00:00:05]} 52. Kf2 {[%clk 00:07:30]} {[%emt 00:00:02]} Ra1 {[%clk 00:08:38]}
{[%emt 00:00:19]} 53. b3 {[%clk 00:07:00]} {[%emt 00:01:01]} Rxa2 {[%clk
00:08:53]} {[%emt 00:00:15]} 1-0

[Event "Polofinale MCR juniorek 2023"]
[Site "Czech Republic"]
[Date "2023.11.13"]
[Round "3.3"]
[White "Sulcova, Tereza Radmila"]
[Black "Nespora, Tatana"]
[Result "1-0"]
[TimeControl "90 min per 40 moves + 15 min + 30 sec / move from move 1"]
[WhiteFideId "395196"]
[BlackFideId "392286"]
[WhiteElo "1671"]
[BlackElo "1690"]

1. e4 {[%clk 01:30:38]} {[%emt 00:00:21]} c5 {[%clk 01:30:41]} {[%emt
00:00:20]} 2. c4 {[%clk 01:30:45]} {[%emt 00:00:23]} g6 {[%clk 01:30:45]}
{[%emt 00:00:26]} 3. g3 {[%clk 01:30:58]} {[%emt 00:00:17]} Bg7 {[%clk
01:30:47]} {[%emt 00:00:28]} 4. Bg2 {[%clk 01:30:54]} {[%emt 00:00:33]} Nc6
{[%clk 01:30:42]} {[%emt 00:00:35]} 5. Nc3 {[%clk 01:30:56]} {[%emt 00:00:28]}
e6 {[%clk 01:30:15]} {[%emt 00:00:57]} 6. Nge2 {[%clk 01:30:54]} {[%emt
00:00:31]} Nge7 {[%clk 01:29:44]} {[%emt 00:01:02]} 7. O-O {[%clk 01:31:01]}
{[%emt 00:00:23]} O-O {[%clk 01:29:34]} {[%emt 00:00:40]} 8. d3 {[%clk
01:31:15]} {[%emt 00:00:16]} d6 {[%clk 01:29:15]} {[%emt 00:00:49]} 9. Be3
{[%clk 01:30:09]} {[%emt 00:01:36]} Nd4 {[%clk 01:28:44]} {[%emt 00:01:02]} 10.
b4 {[%clk 01:28:17]} {[%emt 00:02:22]} a6 {[%clk 01:22:17]} {[%emt 00:06:57]}
11. Rb1 {[%clk 01:26:47]} {[%emt 00:01:59]} Nec6 {[%clk 01:17:47]} {[%emt
00:05:00]} 12. bxc5 {[%clk 01:18:03]} {[%emt 00:09:15]} dxc5 {[%clk 01:17:35]}
{[%emt 00:00:42]} 13. Qd2 {[%clk 01:17:44]} {[%emt 00:00:48]} Rb8 {[%clk
01:15:42]} {[%emt 00:02:23]} 14. Na4 {[%clk 01:12:36]} {[%emt 00:05:39]} b6
{[%clk 01:09:59]} {[%emt 00:06:13]} 15. Nxd4 {[%clk 01:10:25]} {[%emt
00:02:41]} Nxd4 {[%clk 01:09:38]} {[%emt 00:00:51]} 16. Nxc5 {[%clk 01:09:49]}
{[%emt 00:01:06]} b5 {[%clk 00:56:20]} {[%emt 00:13:48]} 17. Rfd1 {[%clk
00:57:31]} {[%emt 00:12:47]} e5 {[%clk 00:53:47]} {[%emt 00:03:03]} 18. h3
{[%clk 00:47:36]} {[%emt 00:10:25]} Qc7 {[%clk 00:35:26]} {[%emt 00:18:51]} 19.
Nb3 {[%clk 00:41:14]} {[%emt 00:06:53]} Bxh3 {[%clk 00:29:01]} {[%emt
00:06:55]} 20. Bxd4 {[%clk 00:38:53]} {[%emt 00:02:51]} Bxg2 {[%clk 00:28:58]}
{[%emt 00:00:32]} 21. Bc5 {[%clk 00:38:50]} {[%emt 00:00:34]} Bf3 {[%clk
00:15:37]} {[%emt 00:13:50]} 22. Bxf8 {[%clk 00:38:15]} {[%emt 00:01:06]} Qd7
{[%clk 00:15:23]} {[%emt 00:00:44]} 23. Qe3 {[%clk 00:33:47]} {[%emt 00:04:57]}
Qg4 {[%clk 00:15:05]} {[%emt 00:00:47]} 24. Nd2 {[%clk 00:31:21]} {[%emt
00:02:57]} Bxd1 {[%clk 00:15:14]} {[%emt 00:00:21]} 25. Bxg7 {[%clk 00:31:04]}
{[%emt 00:00:47]} Kxg7 {[%clk 00:15:28]} {[%emt 00:00:16]} 26. Kg2 {[%clk
00:28:41]} {[%emt 00:02:53]} Qe2 {[%clk 00:11:45]} {[%emt 00:04:14]} 27. Nf1
{[%clk 00:22:12]} {[%emt 00:06:59]} Rd8 {[%clk 00:08:52]} {[%emt 00:03:23]} 28.
Qc5 {[%clk 00:19:58]} {[%emt 00:02:43]} Qxd3 {[%clk 00:07:59]} {[%emt
00:01:23]} 29. Qxe5+ {[%clk 00:20:01]} {[%emt 00:00:27]} Kg8 {[%clk 00:08:11]}
{[%emt 00:00:18]} 30. Rxd1 {[%clk 00:18:24]} {[%emt 00:02:08]} Qxd1 {[%clk
00:08:25]} {[%emt 00:00:16]} 31. cxb5 {[%clk 00:18:36]} {[%emt 00:00:18]} axb5
{[%clk 00:08:27]} {[%emt 00:00:28]} 32. Qxb5 {[%clk 00:16:52]} {[%emt
00:02:13]} Qd3 {[%clk 00:06:59]} {[%emt 00:01:58]} 33. Qe5 {[%clk 00:15:17]}
{[%emt 00:02:05]} Qd6 {[%clk 00:06:01]} {[%emt 00:01:28]} 34. Qb5 {[%clk
00:14:36]} {[%emt 00:01:11]} Qe6 {[%clk 00:06:17]} {[%emt 00:00:13]} 35. Qa4
{[%clk 00:14:39]} {[%emt 00:00:27]} Re8 {[%clk 00:06:26]} {[%emt 00:00:22]} 36.
f3 {[%clk 00:13:11]} {[%emt 00:01:58]} f5 {[%clk 00:06:11]} {[%emt 00:00:45]}
37. Nd2 {[%clk 00:13:05]} {[%emt 00:00:36]} Rd8 {[%clk 00:05:28]} {[%emt
00:01:13]} 38. Qc2 {[%clk 00:12:23]} {[%emt 00:01:12]} Qd6 {[%clk 00:05:20]}
{[%emt 00:00:39]} 39. Qc4+ {[%clk 00:11:37]} {[%emt 00:01:15]} Kf8 {[%clk
00:04:36]} {[%emt 00:01:14]} 40. Nb3 {[%clk 00:11:47]} {[%emt 00:00:20]} fxe4
{[%clk 00:03:54]} {[%emt 00:01:12]} 41. Qxe4 {[%clk 00:10:36]} {[%emt
00:01:40]} Qd3 {[%clk 00:03:39]} {[%emt 00:00:46]} 42. Qf4+ {[%clk 00:10:15]}
{[%emt 00:00:51]} Kg8 {[%clk 00:03:32]} {[%emt 00:00:37]} 43. g4 {[%clk
00:09:02]} {[%emt 00:01:43]} Rf8 {[%clk 00:03:18]} {[%emt 00:00:44]} 44. Qg3
{[%clk 00:08:37]} {[%emt 00:00:55]} Qe2+ {[%clk 00:03:02]} {[%emt 00:00:46]} 45.
Qf2 {[%clk 00:08:59]} {[%emt 00:00:08]} Qxf2+ {[%clk 00:02:58]} {[%emt
00:00:34]} 46. Kxf2 {[%clk 00:09:26]} {[%emt 00:00:02]} Ra8 {[%clk 00:03:20]}
{[%emt 00:00:09]} 47. Kg3 {[%clk 00:08:26]} {[%emt 00:01:30]} Kf7 {[%clk
00:03:25]} {[%emt 00:00:25]} 48. Nc5 {[%clk 00:08:21]} {[%emt 00:00:34]} Rxa2
{[%clk 00:03:17]} {[%emt 00:00:38]} 49. Ne4 {[%clk 00:08:41]} {[%emt 00:00:10]}
h6 {[%clk 00:02:53]} {[%emt 00:00:54]} 50. Nc3 {[%clk 00:08:32]} {[%emt
00:00:39]} Ra1 {[%clk 00:01:59]} {[%emt 00:01:25]} 51. Ne2 {[%clk 00:08:18]}
{[%emt 00:00:43]} Kf6 {[%clk 00:01:36]} {[%emt 00:00:54]} 52. Nf4 {[%clk
00:08:06]} {[%emt 00:00:41]} Rd1 {[%clk 00:15:10]} {[%emt 00:02:26]} 53. Ne2
{[%clk 00:23:25]} {[%emt 00:01:12]} Rd2 {[%clk 00:14:31]} {[%emt 00:01:09]} 54.
Nc3 {[%clk 00:23:25]} {[%emt 00:00:29]} Rc2 {[%clk 00:14:02]} {[%emt 00:01:00]}
55. Nd1 {[%clk 00:22:19]} {[%emt 00:01:36]} Ke5 {[%clk 00:13:19]} {[%emt
00:01:14]} 56. Ne3 {[%clk 00:22:14]} {[%emt 00:00:34]} Kd4 {[%clk 00:12:56]}
{[%emt 00:00:53]} 57. Nxc2+ {[%clk 00:22:21]} {[%emt 00:00:24]} Kd3 {[%clk
00:12:58]} {[%emt 00:00:29]} 58. Nb4+ {[%clk 00:21:47]} {[%emt 00:01:03]} Ke3
{[%clk 00:13:06]} {[%emt 00:00:22]} 59. Nd5+ {[%clk 00:22:05]} {[%emt
00:00:12]} Kd4 {[%clk 00:12:39]} {[%emt 00:00:57]} 60. Ne7 {[%clk 00:22:14]}
{[%emt 00:00:21]} g5 {[%clk 00:12:46]} {[%emt 00:00:24]} 61. Nf5+ {[%clk
00:22:30]} {[%emt 00:00:14]} Kd5 {[%clk 00:12:58]} {[%emt 00:00:18]} 62. Nxh6
{[%clk 00:22:16]} {[%emt 00:00:44]} Ke5 {[%clk 00:13:19]} {[%emt 00:00:09]} 63.
Nf7+ {[%clk 00:21:46]} {[%emt 00:00:59]} Kf6 {[%clk 00:13:45]} {[%emt
00:00:06]} 64. Nd6 {[%clk 00:22:07]} {[%emt 00:00:09]} Ke6 {[%clk 00:14:04]}
{[%emt 00:00:11]} 65. Ne4 {[%clk 00:22:27]} {[%emt 00:00:11]} 1-0

[Event "Polofinale MCR juniorek 2023"]
[Site "Czech Republic"]
[Date "2023.11.13"]
[Round "3.4"]
[White "Markina, Sofiia"]
[Black "Nagyova, Daniela"]
[Result "1-0"]
[TimeControl "90 min per 40 moves + 15 min + 30 sec / move from move 1"]
[WhiteFideId "23744014"]
[BlackFideId "390070"]
[WhiteElo "1563"]
[BlackElo "1872"]

1. e4 {[%clk 01:30:58]} {[%emt 00:00:01]} e5 {[%clk 01:30:51]} {[%emt
00:00:09]} 2. Nf3 {[%clk 01:31:22]} {[%emt 00:00:06]} Nc6 {[%clk 01:31:08]}
{[%emt 00:00:14]} 3. Bc4 {[%clk 01:31:41]} {[%emt 00:00:11]} Nf6 {[%clk
01:31:11]} {[%emt 00:00:26]} 4. d3 {[%clk 01:31:58]} {[%emt 00:00:14]} Be7
{[%clk 01:31:10]} {[%emt 00:00:31]} 5. O-O {[%clk 01:32:01]} {[%emt 00:00:27]}
O-O {[%clk 01:31:12]} {[%emt 00:00:28]} 6. Nbd2 {[%clk 01:31:25]} {[%emt
00:01:07]} d6 {[%clk 01:30:06]} {[%emt 00:01:36]} 7. c3 {[%clk 01:31:23]}
{[%emt 00:00:32]} Na5 {[%clk 01:26:32]} {[%emt 00:04:03]} 8. Bb5 {[%clk
01:31:23]} {[%emt 00:00:31]} a6 {[%clk 01:26:48]} {[%emt 00:00:14]} 9. Ba4
{[%clk 01:31:46]} {[%emt 00:00:07]} b5 {[%clk 01:26:54]} {[%emt 00:00:23]} 10.
Bc2 {[%clk 01:32:06]} {[%emt 00:00:10]} c5 {[%clk 01:26:10]} {[%emt 00:01:14]}
11. Re1 {[%clk 01:30:23]} {[%emt 00:02:13]} Nc6 {[%clk 01:20:48]} {[%emt
00:05:53]} 12. h3 {[%clk 01:28:55]} {[%emt 00:01:57]} a5 {[%clk 01:12:16]}
{[%emt 00:09:03]} 13. Nf1 {[%clk 01:23:40]} {[%emt 00:05:45]} Qc7 {[%clk
01:07:15]} {[%emt 00:05:32]} 14. Qe2 {[%clk 01:18:52]} {[%emt 00:05:17]} Re8
{[%clk 01:02:01]} {[%emt 00:05:44]} 15. Ne3 {[%clk 01:10:01]} {[%emt 00:09:22]}
Be6 {[%clk 00:57:54]} {[%emt 00:04:37]} 16. Bb3 {[%clk 01:09:09]} {[%emt
00:01:21]} a4 {[%clk 00:52:42]} {[%emt 00:05:43]} 17. Bd5 {[%clk 01:03:04]}
{[%emt 00:06:34]} Bf8 {[%clk 00:49:52]} {[%emt 00:03:20]} 18. Ng5 {[%clk
01:01:03]} {[%emt 00:02:31]} h6 {[%clk 00:46:56]} {[%emt 00:03:26]} 19. Nxe6
{[%clk 01:00:12]} {[%emt 00:01:21]} fxe6 {[%clk 00:47:16]} {[%emt 00:00:10]} 20.
Bxc6 {[%clk 01:00:37]} {[%emt 00:00:05]} Qxc6 {[%clk 00:47:42]} {[%emt
00:00:04]} 21. Ng4 {[%clk 00:59:51]} {[%emt 00:01:16]} Nh7 {[%clk 00:42:01]}
{[%emt 00:06:11]} 22. Qf3 {[%clk 00:49:38]} {[%emt 00:10:42]} Ra7 {[%clk
00:38:34]} {[%emt 00:03:58]} 23. Qg3 {[%clk 00:46:00]} {[%emt 00:04:08]} Kh8
{[%clk 00:37:11]} {[%emt 00:01:53]} 24. Re3 {[%clk 00:40:24]} {[%emt 00:06:05]}
Rae7 {[%clk 00:33:11]} {[%emt 00:04:31]} 25. Bd2 {[%clk 00:36:15]} {[%emt
00:04:39]} Qb6 {[%clk 00:28:24]} {[%emt 00:05:17]} 26. a3 {[%clk 00:30:25]}
{[%emt 00:06:20]} c4 {[%clk 00:26:02]} {[%emt 00:02:52]} 27. d4 {[%clk
00:28:52]} {[%emt 00:02:03]} h5 {[%clk 00:23:35]} {[%emt 00:02:56]} 28. Nh2
{[%clk 00:28:13]} {[%emt 00:01:09]} exd4 {[%clk 00:23:28]} {[%emt 00:00:38]} 29.
cxd4 {[%clk 00:28:38]} {[%emt 00:00:05]} Qxd4 {[%clk 00:22:23]} {[%emt
00:01:35]} 30. Bc3 {[%clk 00:28:59]} {[%emt 00:00:09]} Qb6 {[%clk 00:22:13]}
{[%emt 00:00:40]} 31. Qg6 {[%clk 00:27:26]} {[%emt 00:02:02]} Qc5 {[%clk
00:18:10]} {[%emt 00:04:34]} 32. e5 {[%clk 00:26:45]} {[%emt 00:01:12]} d5
{[%clk 00:13:37]} {[%emt 00:05:03]} 33. Bb4 {[%clk 00:24:22]} {[%emt 00:02:53]}
Qb6 {[%clk 00:11:07]} {[%emt 00:02:59]} 34. Bxe7 {[%clk 00:24:02]} {[%emt
00:00:50]} Rxe7 {[%clk 00:11:25]} {[%emt 00:00:12]} 35. Qxh5 {[%clk 00:24:06]}
{[%emt 00:00:26]} d4 {[%clk 00:11:18]} {[%emt 00:00:37]} 36. Rf3 {[%clk
00:23:54]} {[%emt 00:00:42]} Kg8 {[%clk 00:09:42]} {[%emt 00:02:06]} 37. Ng4
{[%clk 00:22:45]} {[%emt 00:01:38]} Qc5 {[%clk 00:08:02]} {[%emt 00:02:11]} 38.
Qg6 {[%clk 00:20:49]} {[%emt 00:02:25]} Kh8 {[%clk 00:07:12]} {[%emt 00:01:21]}
39. Rc1 {[%clk 00:18:59]} {[%emt 00:02:20]} Qd5 {[%clk 00:04:37]} {[%emt
00:03:06]} 40. Rg3 {[%clk 00:15:14]} {[%emt 00:04:14]} Rd7 {[%clk 00:03:03]}
{[%emt 00:02:04]} 41. Nf6 {[%clk 00:14:57]} {[%emt 00:00:47]} Nxf6 {[%clk
00:03:20]} {[%emt 00:00:13]} 42. exf6 {[%clk 00:15:23]} {[%emt 00:00:04]} Qb7
{[%clk 00:11:04]} {[%emt 00:08:16]} 43. Rg5 {[%clk 00:30:22]} {[%emt 00:01:31]}
Rd5 {[%clk 00:07:43]} {[%emt 00:03:51]} 44. Rg4 {[%clk 00:29:58]} {[%emt
00:00:53]} Kg8 {[%clk 00:07:11]} {[%emt 00:01:03]} 45. Rh4 {[%clk 00:30:08]}
{[%emt 00:00:20]} d3 {[%clk 00:06:16]} {[%emt 00:01:25]} 46. f7+ {[%clk
00:30:28]} {[%emt 00:00:11]} Qxf7 {[%clk 00:06:41]} {[%emt 00:00:04]} 47. Qh7#
{[%clk 00:30:49]} {[%emt 00:00:09]} 1-0

[Event "Polofinale MCR juniorek 2023"]
[Site "Czech Republic"]
[Date "2023.11.13"]
[Round "3.5"]
[White "Macova, Marketa"]
[Black "Hosova, Sandra"]
[Result "1/2-1/2"]
[TimeControl "90 min per 40 moves + 15 min + 30 sec / move from move 1"]
[WhiteFideId "23715588"]
[BlackFideId "397717"]
[WhiteElo "1416"]
[BlackElo "1730"]

1. e4 {[%clk 01:30:57]} {[%emt 00:00:01]} g6 {[%clk 01:30:43]} {[%emt
00:00:18]} 2. d4 {[%clk 01:31:01]} {[%emt 00:00:26]} Bg7 {[%clk 01:30:59]}
{[%emt 00:00:13]} 3. Nf3 {[%clk 01:31:16]} {[%emt 00:00:15]} d6 {[%clk
01:31:16]} {[%emt 00:00:14]} 4. Bf4 {[%clk 01:30:16]} {[%emt 00:01:30]} c6
{[%clk 01:30:46]} {[%emt 00:01:00]} 5. Be2 {[%clk 01:28:56]} {[%emt 00:01:50]}
Nf6 {[%clk 01:28:34]} {[%emt 00:02:43]} 6. Nbd2 {[%clk 01:28:10]} {[%emt
00:01:15]} Nbd7 {[%clk 01:27:37]} {[%emt 00:01:28]} 7. c3 {[%clk 01:26:10]}
{[%emt 00:02:30]} b5 {[%clk 01:25:48]} {[%emt 00:02:19]} 8. Qc2 {[%clk
01:24:15]} {[%emt 00:02:24]} Bb7 {[%clk 01:23:44]} {[%emt 00:02:35]} 9. O-O
{[%clk 01:23:16]} {[%emt 00:01:27]} O-O {[%clk 01:21:28]} {[%emt 00:02:46]} 10.
Rfe1 {[%clk 01:19:13]} {[%emt 00:04:32]} Re8 {[%clk 01:09:14]} {[%emt
00:12:45]} 11. Rad1 {[%clk 01:17:00]} {[%emt 00:02:43]} Qc7 {[%clk 01:04:40]}
{[%emt 00:05:05]} 12. c4 {[%clk 01:13:35]} {[%emt 00:03:55]} e5 {[%clk
01:02:43]} {[%emt 00:02:27]} 13. dxe5 {[%clk 01:08:20]} {[%emt 00:05:45]} dxe5
{[%clk 01:03:02]} {[%emt 00:00:11]} 14. Bg3 {[%clk 01:06:39]} {[%emt 00:02:11]}
b4 {[%clk 01:01:14]} {[%emt 00:02:19]} 15. Nd4 {[%clk 00:56:02]} {[%emt
00:11:06]} c5 {[%clk 00:56:13]} {[%emt 00:05:32]} 16. N4b3 {[%clk 00:50:12]}
{[%emt 00:06:20]} Nb6 {[%clk 00:52:27]} {[%emt 00:04:16]} 17. Bf3 {[%clk
00:42:44]} {[%emt 00:07:58]} a5 {[%clk 00:50:48]} {[%emt 00:02:10]} 18. Nf1
{[%clk 00:36:14]} {[%emt 00:06:59]} Nfd7 {[%clk 00:48:35]} {[%emt 00:02:44]} 19.
Bg4 {[%clk 00:35:31]} {[%emt 00:01:12]} Nf8 {[%clk 00:45:39]} {[%emt 00:03:26]}
20. Ne3 {[%clk 00:32:01]} {[%emt 00:04:00]} a4 {[%clk 00:44:51]} {[%emt
00:01:18]} 21. Nc1 {[%clk 00:31:53]} {[%emt 00:00:38]} Ne6 {[%clk 00:42:49]}
{[%emt 00:02:32]} 22. Bxe6 {[%clk 00:29:57]} {[%emt 00:02:26]} Rxe6 {[%clk
00:41:50]} {[%emt 00:01:30]} 23. f3 {[%clk 00:22:58]} {[%emt 00:07:28]} Nc8
{[%clk 00:34:37]} {[%emt 00:07:43]} 24. Bf2 {[%clk 00:21:50]} {[%emt 00:01:37]}
Nd6 {[%clk 00:29:06]} {[%emt 00:06:01]} 25. Nd5 {[%clk 00:18:46]} {[%emt
00:03:34]} Qa5 {[%clk 00:28:10]} {[%emt 00:01:26]} 26. b3 {[%clk 00:16:32]}
{[%emt 00:02:44]} f5 {[%clk 00:22:55]} {[%emt 00:05:45]} 27. Nd3 {[%clk
00:13:53]} {[%emt 00:03:09]} Rc8 {[%clk 00:22:24]} {[%emt 00:01:01]} 28. bxa4
{[%clk 00:12:26]} {[%emt 00:01:57]} Ba6 {[%clk 00:18:37]} {[%emt 00:04:17]} 29.
Nb2 {[%clk 00:11:15]} {[%emt 00:01:41]} f4 {[%clk 00:16:34]} {[%emt 00:02:33]}
30. Rd2 {[%clk 00:09:08]} {[%emt 00:02:37]} Nf7 {[%clk 00:16:11]} {[%emt
00:00:53]} 31. Red1 {[%clk 00:08:42]} {[%emt 00:00:56]} Nd8 {[%clk 00:16:01]}
{[%emt 00:00:40]} 32. Bh4 {[%clk 00:07:32]} {[%emt 00:01:40]} Nc6 {[%clk
00:15:53]} {[%emt 00:00:38]} 33. Bf2 {[%clk 00:06:44]} {[%emt 00:01:18]} Nd4
{[%clk 00:15:47]} {[%emt 00:00:36]} 34. Bxd4 {[%clk 00:06:34]} {[%emt
00:00:39]} cxd4 {[%clk 00:12:58]} {[%emt 00:03:20]} 35. Qb3 {[%clk 00:06:09]}
{[%emt 00:00:55]} Bf8 {[%clk 00:13:17]} {[%emt 00:00:11]} 36. Rc1 {[%clk
00:05:25]} {[%emt 00:01:14]} Bb7 {[%clk 00:08:40]} {[%emt 00:05:07]} 37. Nd3
{[%clk 00:03:40]} {[%emt 00:02:15]} Rb8 {[%clk 00:05:37]} {[%emt 00:03:33]} 38.
N5xb4 {[%clk 00:02:32]} {[%emt 00:01:38]} Bxe4 {[%clk 00:04:26]} {[%emt
00:01:41]} 39. fxe4 {[%clk 00:02:15]} {[%emt 00:00:47]} Bxb4 {[%clk 00:04:26]}
{[%emt 00:00:30]} 40. Rb2 {[%clk 00:01:03]} {[%emt 00:01:42]} Bd6 {[%clk
00:03:42]} {[%emt 00:01:15]} 41. Qc2 {[%clk 00:00:49]} {[%emt 00:00:44]} Rxb2
{[%clk 00:14:50]} {[%emt 00:04:51]} 42. Nxb2 {[%clk 00:16:56]} {[%emt
00:00:24]} Ba3 {[%clk 00:12:16]} {[%emt 00:03:04]} 43. Rb1 {[%clk 00:13:14]}
{[%emt 00:04:12]} Rb6 {[%clk 00:11:48]} {[%emt 00:00:59]} 44. Nd3 {[%clk
00:12:38]} {[%emt 00:01:05]} Rxb1+ {[%clk 00:08:02]} {[%emt 00:04:16]} 45. Qxb1
{[%clk 00:12:58]} {[%emt 00:00:09]} Qxa4 {[%clk 00:05:35]} {[%emt 00:02:57]} 46.
Qb3 {[%clk 00:08:20]} {[%emt 00:05:08]} Qa8 {[%clk 00:04:11]} {[%emt 00:01:55]}
1/2-1/2